[Event "Late-Titled-Tuesday-Blitz-February-27-2024"]
[Site "Chess.com"]
[Date "2024.02.27"]
[Round "2"]
[White "elmusmolamas"]
[Black "waltereador"]
[Result "1/2-1/2"]
[WhiteElo "2499"]
[BlackElo "2274"]
[TimeControl "180+1"]
[EndTime "14:19:04 PST"]
[Termination "Game drawn - timeout vs insufficient material"]

1. e4 {[%clk 0:02:54.6]} 1... c6 {[%clk 0:02:58.2]} 2. c4 {[%clk 0:02:46.7]}
2... d5 {[%clk 0:02:57.5]} 3. exd5 {[%clk 0:02:42.8]} 3... cxd5 {[%clk 0:02:57]}
4. cxd5 {[%clk 0:02:43.7]} 4... Nf6 {[%clk 0:02:57.3]} 5. Nf3 {[%clk 0:02:40.1]}
5... Nxd5 {[%clk 0:02:55.7]} 6. Nc3 {[%clk 0:02:37.1]} 6... Nxc3 {[%clk
0:02:53.2]} 7. bxc3 {[%clk 0:02:35.8]} 7... g6 {[%clk 0:02:53.9]} 8. Qb3 {[%clk
0:02:31.2]} 8... Bg7 {[%clk 0:02:51]} 9. h4 {[%clk 0:02:26.6]} 9... h5 {[%clk
0:02:50.7]} 10. Bc4 {[%clk 0:02:01.6]} 10... O-O {[%clk 0:02:49.7]} 11. Ng5
{[%clk 0:02:02.2]} 11... e6 {[%clk 0:02:49]} 12. Ba3 {[%clk 0:02:02.8]} 12...
Re8 {[%clk 0:02:42.5]} 13. d4 {[%clk 0:01:56.6]} 13... Nc6 {[%clk 0:02:42.5]}
14. Qd1 {[%clk 0:01:46.5]} 14... Na5 {[%clk 0:02:36.8]} 15. Bd3 {[%clk
0:01:42.6]} 15... Bd7 {[%clk 0:02:36.6]} 16. Qf3 {[%clk 0:01:40.5]} 16... Qf6
{[%clk 0:02:35.8]} 17. Qxf6 {[%clk 0:01:29.9]} 17... Bxf6 {[%clk 0:02:35.3]} 18.
Ne4 {[%clk 0:01:30.5]} 18... Bg7 {[%clk 0:02:32.6]} 19. O-O {[%clk 0:01:22.1]}
19... Bc6 {[%clk 0:02:31.4]} 20. Bb4 {[%clk 0:01:12.6]} 20... Bxe4 {[%clk
0:02:24.6]} 21. Bxe4 {[%clk 0:01:12.3]} 21... Nc6 {[%clk 0:02:24.9]} 22. Bd6
{[%clk 0:01:07.8]} 22... Red8 {[%clk 0:02:23.6]} 23. Bf4 {[%clk 0:01:07.8]}
23... Rac8 {[%clk 0:02:22.9]} 24. Rab1 {[%clk 0:01:07.5]} 24... b6 {[%clk
0:02:21.8]} 25. a4 {[%clk 0:01:04]} 25... Na5 {[%clk 0:02:21.8]} 26. Rfc1 {[%clk
0:01:04.2]} 26... Nc4 {[%clk 0:02:18.6]} 27. g3 {[%clk 0:00:55.4]} 27... Bf6
{[%clk 0:02:17.2]} 28. Bb7 {[%clk 0:00:48.5]} 28... e5 {[%clk 0:01:59]} 29. dxe5
{[%clk 0:00:44.9]} 29... Bxe5 {[%clk 0:01:58.2]} 30. Bxe5 {[%clk 0:00:43.9]}
30... Nxe5 {[%clk 0:01:57.8]} 31. Bxc8 {[%clk 0:00:44.5]} 31... Rxc8 {[%clk
0:01:58.3]} 32. Kg2 {[%clk 0:00:38.9]} 32... Rc4 {[%clk 0:01:53.7]} 33. a5
{[%clk 0:00:39]} 33... bxa5 {[%clk 0:01:53.3]} 34. Rb5 {[%clk 0:00:37.4]} 34...
Nd3 {[%clk 0:01:48.6]} 35. Ra1 {[%clk 0:00:29.5]} 35... Rxc3 {[%clk 0:01:48.4]}
36. Rbxa5 {[%clk 0:00:29.9]} 36... Rc2 {[%clk 0:01:47.1]} 37. R5a2 {[%clk
0:00:30.3]} 37... Rxa2 {[%clk 0:01:35.8]} 38. Rxa2 {[%clk 0:00:31.2]} 38... Nc5
{[%clk 0:01:33.5]} 39. Rxa7 {[%clk 0:00:31.7]} 39... Ne6 {[%clk 0:01:33.8]} 40.
Kf3 {[%clk 0:00:31.1]} 40... Kg7 {[%clk 0:01:34.3]} 41. Ke4 {[%clk 0:00:30.8]}
41... Kf6 {[%clk 0:01:34.8]} 42. Ra6 {[%clk 0:00:30.8]} 42... Ke7 {[%clk
0:01:32.8]} 43. Ke5 {[%clk 0:00:30.2]} 43... Nc5 {[%clk 0:01:30.8]} 44. Ra7+
{[%clk 0:00:29.8]} 44... Kf8 {[%clk 0:01:27.2]} 45. f3 {[%clk 0:00:23.5]} 45...
Kg7 {[%clk 0:01:27.4]} 46. g4 {[%clk 0:00:12.6]} 46... hxg4 {[%clk 0:01:26]} 47.
fxg4 {[%clk 0:00:13.5]} 47... Nd3+ {[%clk 0:01:26.4]} 48. Ke4 {[%clk 0:00:12.3]}
48... Nc5+ {[%clk 0:01:25.7]} 49. Kf4 {[%clk 0:00:12.2]} 49... Ne6+ {[%clk
0:01:25.6]} 50. Ke5 {[%clk 0:00:12.8]} 50... Nf8 {[%clk 0:01:24.1]} 51. Re7
{[%clk 0:00:10.2]} 51... Nh7 {[%clk 0:01:23.8]} 52. g5 {[%clk 0:00:09.9]} 52...
Nf8 {[%clk 0:01:23.5]} 53. Kd6 {[%clk 0:00:10.4]} 53... Nh7 {[%clk 0:01:23.1]}
54. Kd7 {[%clk 0:00:09.6]} 54... Kf8 {[%clk 0:01:23.4]} 55. Re8+ {[%clk
0:00:09.2]} 55... Kg7 {[%clk 0:01:23.6]} 56. Ke7 {[%clk 0:00:09.5]} 56... f6
{[%clk 0:01:19.3]} 57. Ra8 {[%clk 0:00:07.5]} 57... fxg5 {[%clk 0:01:19.1]} 58.
hxg5 {[%clk 0:00:05.8]} 58... Nxg5 {[%clk 0:01:19.4]} 59. Ra5 {[%clk 0:00:05.2]}
59... Ne4 {[%clk 0:01:18.6]} 60. Ke6 {[%clk 0:00:04.8]} 60... Ng3 {[%clk
0:01:15.8]} 61. Ke5 {[%clk 0:00:03.7]} 61... Nf5 {[%clk 0:01:15.6]} 62. Kf4
{[%clk 0:00:04.4]} 62... Ne7 {[%clk 0:01:15.1]} 63. Ra6 {[%clk 0:00:04.7]} 63...
Kf7 {[%clk 0:01:10.3]} 64. Kg5 {[%clk 0:00:04.3]} 64... Kg7 {[%clk 0:00:59.7]}
65. Ra7 {[%clk 0:00:02.3]} 65... Kf7 {[%clk 0:00:59.7]} 66. Ra6 {[%clk
0:00:03.2]} 66... Kg7 {[%clk 0:00:59.8]} 67. Rb6 {[%clk 0:00:04.1]} 67... Kf7
{[%clk 0:01:00.2]} 68. Rd6 {[%clk 0:00:04.5]} 68... Kg7 {[%clk 0:01:00.3]} 69.
Rf6 {[%clk 0:00:04.6]} 69... Kg8 {[%clk 0:00:57.5]} 70. Kh6 {[%clk 0:00:03.6]}
70... Nd5 {[%clk 0:00:48.9]} 71. Rxg6+ {[%clk 0:00:03.2]} 71... Kf7 {[%clk
0:00:49.6]} 72. Rd6 {[%clk 0:00:04.1]} 72... Ne7 {[%clk 0:00:48.2]} 73. Kg5
{[%clk 0:00:04.1]} 73... Ng8 {[%clk 0:00:47.2]} 74. Kf5 {[%clk 0:00:03]} 74...
Ke7 {[%clk 0:00:47.4]} 75. Ra6 {[%clk 0:00:02.3]} 75... Ke8 {[%clk 0:00:45.8]}
76. Ke6 {[%clk 0:00:02.5]} 76... Kf8 {[%clk 0:00:45.7]} 77. Ra8+ {[%clk
0:00:02.8]} 77... Kg7 {[%clk 0:00:46]} 78. Ra7+ {[%clk 0:00:03.7]} 78... Kg6
{[%clk 0:00:46.3]} 79. Ra3 {[%clk 0:00:04.2]} 79... Nh6 {[%clk 0:00:46.1]} 80.
Rg3+ {[%clk 0:00:04.4]} 80... Kh5 {[%clk 0:00:46.5]} 81. Kf6 {[%clk 0:00:04.3]}
81... Ng4+ {[%clk 0:00:44.9]} 82. Kf5 {[%clk 0:00:04.6]} 82... Nh6+ {[%clk
0:00:45.2]} 83. Kf4 {[%clk 0:00:05.1]} 83... Nf7 {[%clk 0:00:41.9]} 84. Rg7
{[%clk 0:00:05.5]} 84... Nh6 {[%clk 0:00:39.7]} 85. Rg5+ {[%clk 0:00:06]} 85...
Kh4 {[%clk 0:00:39.6]} 86. Rd5 {[%clk 0:00:04.3]} 86... Ng4 {[%clk 0:00:38.7]}
87. Rd8 {[%clk 0:00:03.6]} 87... Nh6 {[%clk 0:00:38.1]} 88. Rh8 {[%clk
0:00:02.7]} 88... Kh5 {[%clk 0:00:38.4]} 1/2-1/2

[Event "Late-Titled-Tuesday-Blitz-February-27-2024"]
[Site "Chess.com"]
[Date "2024.02.27"]
[Round "2"]
[White "Abund"]
[Black "Pelusiansky"]
[Result "1/2-1/2"]
[WhiteElo "2764"]
[BlackElo "2546"]
[TimeControl "180+1"]
[EndTime "14:19:31 PST"]
[Termination "Game drawn by stalemate"]

1. e4 {[%clk 0:03:00.9]} 1... c6 {[%clk 0:02:59.3]} 2. Nf3 {[%clk 0:02:57.9]}
2... d5 {[%clk 0:02:59.4]} 3. d3 {[%clk 0:02:58.4]} 3... g6 {[%clk 0:02:59]} 4.
Nbd2 {[%clk 0:02:54.7]} 4... Bg7 {[%clk 0:02:58.7]} 5. g3 {[%clk 0:02:54.1]}
5... e5 {[%clk 0:02:58.7]} 6. Bg2 {[%clk 0:02:54.4]} 6... Ne7 {[%clk 0:02:59]}
7. O-O {[%clk 0:02:54.8]} 7... O-O {[%clk 0:02:59.6]} 8. Re1 {[%clk 0:02:54.8]}
8... d4 {[%clk 0:03:00.2]} 9. Nc4 {[%clk 0:02:51.4]} 9... b5 {[%clk 0:02:59.8]}
10. Ncd2 {[%clk 0:02:45.5]} 10... a6 {[%clk 0:02:42.3]} 11. a4 {[%clk
0:02:43.6]} 11... Bb7 {[%clk 0:02:35.2]} 12. b4 {[%clk 0:02:43.4]} 12... Nd7
{[%clk 0:02:30.7]} 13. Nb3 {[%clk 0:02:42.6]} 13... Qc7 {[%clk 0:02:23.5]} 14.
Bg5 {[%clk 0:02:32.2]} 14... f6 {[%clk 0:02:22.4]} 15. Bd2 {[%clk 0:02:32.2]}
15... c5 {[%clk 0:02:12.9]} 16. axb5 {[%clk 0:01:46.8]} 16... axb5 {[%clk
0:02:08.3]} 17. bxc5 {[%clk 0:01:45.1]} 17... Nxc5 {[%clk 0:02:08]} 18. Qb1
{[%clk 0:01:41.1]} 18... Na4 {[%clk 0:02:01.7]} 19. Bb4 {[%clk 0:01:32.3]} 19...
Rfc8 {[%clk 0:01:58.7]} 20. Rc1 {[%clk 0:01:25.8]} 20... Nc3 {[%clk 0:01:50.2]}
21. Bxc3 {[%clk 0:01:25.6]} 21... Qxc3 {[%clk 0:01:50.1]} 22. Ra2 {[%clk
0:01:13.6]} 22... Nc6 {[%clk 0:01:43.9]} 23. Qb2 {[%clk 0:01:04.2]} 23... Rxa2
{[%clk 0:01:43.9]} 24. Qxa2 {[%clk 0:01:04.3]} 24... Ra8 {[%clk 0:01:37.7]} 25.
Qb1 {[%clk 0:01:02.5]} 25... Nb4 {[%clk 0:01:31.2]} 26. Na1 {[%clk 0:00:55.6]}
26... Kh8 {[%clk 0:01:21.8]} 27. Ne1 {[%clk 0:00:37.4]} 27... Bh6 {[%clk
0:01:09.7]} 28. Rd1 {[%clk 0:00:37.5]} 28... Bc8 {[%clk 0:00:58.2]} 29. Qb3
{[%clk 0:00:36.8]} 29... Kg7 {[%clk 0:00:39.9]} 30. Rb1 {[%clk 0:00:29.8]} 30...
Ra4 {[%clk 0:00:28.3]} 31. Bf3 {[%clk 0:00:24.7]} 31... Bd2 {[%clk 0:00:26.7]}
32. Qxc3 {[%clk 0:00:16.7]} 32... Bxc3 {[%clk 0:00:27.6]} 33. Nb3 {[%clk
0:00:17.2]} 33... Bxe1 {[%clk 0:00:25.3]} 34. Rxe1 {[%clk 0:00:17.6]} 34... Nxc2
{[%clk 0:00:26]} 35. Rc1 {[%clk 0:00:18]} 35... Ra2 {[%clk 0:00:24.1]} 36. Bd1
{[%clk 0:00:18.1]} 36... Nb4 {[%clk 0:00:12.3]} 37. Rxc8 {[%clk 0:00:15.1]}
37... Nxd3 {[%clk 0:00:13]} 38. Rc2 {[%clk 0:00:09.5]} 38... Ra3 {[%clk
0:00:12.4]} 39. Rc7+ {[%clk 0:00:04.2]} 39... Kh6 {[%clk 0:00:12.2]} 40. Bc2
{[%clk 0:00:04.7]} 40... Nb4 {[%clk 0:00:11.3]} 41. Bd1 {[%clk 0:00:03.5]} 41...
d3 {[%clk 0:00:11.7]} 42. Kf1 {[%clk 0:00:03.5]} 42... Nc2 {[%clk 0:00:10.6]}
43. Bxc2 {[%clk 0:00:03.2]} 43... dxc2 {[%clk 0:00:11.4]} 44. Nc1 {[%clk
0:00:03.7]} 44... b4 {[%clk 0:00:05.8]} 45. Rxc2 {[%clk 0:00:04]} 45... b3
{[%clk 0:00:06.5]} 46. Rb2 {[%clk 0:00:02.6]} 46... Ra1 {[%clk 0:00:06.9]} 47.
Kg2 {[%clk 0:00:02.8]} 47... Rxc1 {[%clk 0:00:06.7]} 48. Rxb3 {[%clk 0:00:03.5]}
48... Rc4 {[%clk 0:00:07.5]} 49. Re3 {[%clk 0:00:03.9]} 49... Kg7 {[%clk
0:00:07.1]} 50. h4 {[%clk 0:00:04.6]} 50... Rc5 {[%clk 0:00:06.8]} 51. Kf3
{[%clk 0:00:05.3]} 51... f5 {[%clk 0:00:06.6]} 52. exf5 {[%clk 0:00:05.2]} 52...
gxf5 {[%clk 0:00:07.5]} 53. Ra3 {[%clk 0:00:05.5]} 53... Rc7 {[%clk 0:00:05.8]}
54. Ra5 {[%clk 0:00:05.4]} 54... Kf6 {[%clk 0:00:06.1]} 55. Ra6+ {[%clk
0:00:05.7]} 55... Kg7 {[%clk 0:00:06.7]} 56. Ke3 {[%clk 0:00:06.3]} 56... Kf7
{[%clk 0:00:06.6]} 57. Rh6 {[%clk 0:00:05.9]} 57... Kg7 {[%clk 0:00:06.9]} 58.
Re6 {[%clk 0:00:06.6]} 58... Rc3+ {[%clk 0:00:06.3]} 59. Kd2 {[%clk 0:00:06.7]}
59... Rc5 {[%clk 0:00:06.6]} 60. Kd3 {[%clk 0:00:07.3]} 60... Ra5 {[%clk
0:00:07]} 61. Ke3 {[%clk 0:00:07.5]} 61... Ra3+ {[%clk 0:00:07.1]} 62. Ke2
{[%clk 0:00:07.8]} 62... Ra5 {[%clk 0:00:08]} 63. Kd3 {[%clk 0:00:07.9]} 63...
Kf7 {[%clk 0:00:08.3]} 64. Rh6 {[%clk 0:00:07.7]} 64... Kg7 {[%clk 0:00:08.8]}
65. Rc6 {[%clk 0:00:07.4]} 65... Rb5 {[%clk 0:00:06.5]} 66. Rc2 {[%clk
0:00:06.5]} 66... Ra5 {[%clk 0:00:06.3]} 67. Kc4 {[%clk 0:00:06.7]} 67... Kf6
{[%clk 0:00:05.8]} 68. Kb4 {[%clk 0:00:07.2]} 68... Ra6 {[%clk 0:00:05.6]} 69.
Kb5 {[%clk 0:00:07.4]} 69... Rd6 {[%clk 0:00:05.4]} 70. Rc6 {[%clk 0:00:04.6]}
70... Ke6 {[%clk 0:00:03.3]} 71. Kc5 {[%clk 0:00:04.7]} 71... Rxc6+ {[%clk
0:00:03.3]} 72. Kxc6 {[%clk 0:00:05.6]} 72... e4 {[%clk 0:00:04]} 73. Kc5 {[%clk
0:00:03.7]} 73... Ke5 {[%clk 0:00:04.6]} 74. Kc6 {[%clk 0:00:03.6]} 74... f4
{[%clk 0:00:04.6]} 75. gxf4+ {[%clk 0:00:02.6]} 75... Kxf4 {[%clk 0:00:05.1]}
76. Kd5 {[%clk 0:00:03.4]} 76... h5 {[%clk 0:00:04.4]} 77. Kd4 {[%clk
0:00:03.4]} 77... Kf3 {[%clk 0:00:04.7]} 78. Ke5 {[%clk 0:00:03.9]} 78... Kxf2
{[%clk 0:00:02.9]} 79. Kxe4 {[%clk 0:00:04.5]} 79... Kg3 {[%clk 0:00:03.8]} 80.
Ke3 {[%clk 0:00:05]} 80... Kxh4 {[%clk 0:00:04.7]} 81. Kf2 {[%clk 0:00:05.8]}
81... Kh3 {[%clk 0:00:05.4]} 82. Kg1 {[%clk 0:00:06.7]} 82... Kg3 {[%clk
0:00:06.3]} 83. Kh1 {[%clk 0:00:07.6]} 83... h4 {[%clk 0:00:07.2]} 84. Kg1
{[%clk 0:00:08.5]} 84... h3 {[%clk 0:00:08.1]} 85. Kh1 {[%clk 0:00:09.4]} 85...
h2 {[%clk 0:00:09]} 1/2-1/2

[Event "Late-Titled-Tuesday-Blitz-February-27-2024"]
[Site "Chess.com"]
[Date "2024.02.27"]
[Round "2"]
[White "RantomOpening"]
[Black "Kirill_Klukin"]
[Result "1/2-1/2"]
[WhiteElo "2573"]
[BlackElo "2847"]
[TimeControl "180+1"]
[EndTime "14:19:47 PST"]
[Termination "Game drawn by 50-move rule"]

1. c4 {[%clk 0:02:49.9]} 1... e5 {[%clk 0:02:57.1]} 2. Nc3 {[%clk 0:02:49.9]}
2... Nf6 {[%clk 0:02:57.3]} 3. Nf3 {[%clk 0:02:50.1]} 3... Nc6 {[%clk
0:02:54.4]} 4. e3 {[%clk 0:02:50.4]} 4... Bb4 {[%clk 0:02:44]} 5. Qc2 {[%clk
0:02:50.4]} 5... a5 {[%clk 0:02:42.9]} 6. Nd5 {[%clk 0:02:28.2]} 6... d6 {[%clk
0:02:36]} 7. a3 {[%clk 0:02:25.6]} 7... Bc5 {[%clk 0:02:36.1]} 8. Bd3 {[%clk
0:02:22.6]} 8... Bg4 {[%clk 0:02:32.8]} 9. Nxf6+ {[%clk 0:02:21]} 9... Qxf6
{[%clk 0:02:32.8]} 10. Be4 {[%clk 0:02:21.2]} 10... Bh5 {[%clk 0:02:24.9]} 11.
b3 {[%clk 0:02:20.5]} 11... Bg6 {[%clk 0:02:23.5]} 12. Bb2 {[%clk 0:02:20.1]}
12... Bxe4 {[%clk 0:02:20.9]} 13. Qxe4 {[%clk 0:02:21]} 13... Qg6 {[%clk
0:02:21.5]} 14. Qxg6 {[%clk 0:02:20.4]} 14... hxg6 {[%clk 0:02:22.4]} 15. d4
{[%clk 0:02:20.4]} 15... exd4 {[%clk 0:02:22.5]} 16. exd4 {[%clk 0:02:20.3]}
16... Bb6 {[%clk 0:02:23]} 17. d5 {[%clk 0:02:20.5]} 17... Ne7 {[%clk
0:02:15.1]} 18. Bd4 {[%clk 0:02:20.3]} 18... Bxd4 {[%clk 0:02:11.5]} 19. Nxd4
{[%clk 0:02:21.2]} 19... Kd7 {[%clk 0:02:11.9]} 20. Kd2 {[%clk 0:02:20.7]} 20...
Rh4 {[%clk 0:01:55.9]} 21. Nf3 {[%clk 0:02:16.5]} 21... Nf5 {[%clk 0:01:45]} 22.
Nxh4 {[%clk 0:02:14.5]} 22... Nxh4 {[%clk 0:01:42.1]} 23. g3 {[%clk 0:02:11.4]}
23... Nf3+ {[%clk 0:01:35.7]} 24. Ke3 {[%clk 0:02:10.5]} 24... Ne5 {[%clk
0:01:36]} 25. f4 {[%clk 0:02:10.2]} 25... Ng4+ {[%clk 0:01:36.3]} 26. Kf3 {[%clk
0:02:08.9]} 26... f5 {[%clk 0:01:36.8]} 27. Rae1 {[%clk 0:02:01.7]} 27... Nf6
{[%clk 0:01:28.7]} 28. Re6 {[%clk 0:02:00.6]} 28... c6 {[%clk 0:01:26.3]} 29.
Rhe1 {[%clk 0:01:59]} 29... cxd5 {[%clk 0:01:26.6]} 30. Re7+ {[%clk 0:01:58.1]}
30... Kc6 {[%clk 0:01:26.5]} 31. cxd5+ {[%clk 0:01:55.6]} 31... Nxd5 {[%clk
0:01:20.5]} 32. Rc1+ {[%clk 0:01:51.2]} 32... Kb6 {[%clk 0:01:14.4]} 33. Rd7
{[%clk 0:01:50.6]} 33... Nf6 {[%clk 0:01:08.2]} 34. Rxd6+ {[%clk 0:01:42]} 34...
Ka7 {[%clk 0:01:04.5]} 35. Rc7 {[%clk 0:01:36.5]} 35... Ne8 {[%clk 0:00:44]} 36.
Rdd7 {[%clk 0:01:36]} 36... Nxc7 {[%clk 0:00:44.2]} 37. Rxc7 {[%clk 0:01:36.9]}
37... Rd8 {[%clk 0:00:40.2]} 38. Ke3 {[%clk 0:01:35]} 38... Rd1 {[%clk
0:00:29.4]} 39. Rxg7 {[%clk 0:01:34.3]} 39... Rb1 {[%clk 0:00:30.1]} 40. Rxg6
{[%clk 0:01:31.6]} 40... Rxb3+ {[%clk 0:00:30.1]} 41. Kd2 {[%clk 0:01:31]} 41...
Rxa3 {[%clk 0:00:30.4]} 42. h4 {[%clk 0:01:31.6]} 42... b5 {[%clk 0:00:21.9]}
43. h5 {[%clk 0:01:31.4]} 43... Ra2+ {[%clk 0:00:14.7]} 44. Kc1 {[%clk
0:01:28.5]} 44... Rh2 {[%clk 0:00:14.8]} 45. h6 {[%clk 0:01:17.4]} 45... a4
{[%clk 0:00:15]} 46. g4 {[%clk 0:01:15.2]} 46... fxg4 {[%clk 0:00:14.6]} 47. f5
{[%clk 0:01:15.7]} 47... a3 {[%clk 0:00:12.4]} 48. Kb1 {[%clk 0:01:15.8]} 48...
b4 {[%clk 0:00:12.6]} 49. Rxg4 {[%clk 0:01:14]} 49... a2+ {[%clk 0:00:10.2]} 50.
Ka1 {[%clk 0:01:10.1]} 50... b3 {[%clk 0:00:10.7]} 51. Ra4+ {[%clk 0:01:10.3]}
51... Kb6 {[%clk 0:00:07.3]} 52. Rb4+ {[%clk 0:01:11.2]} 52... Kc5 {[%clk
0:00:07.8]} 53. Rxb3 {[%clk 0:01:12.1]} 53... Rxh6 {[%clk 0:00:08.1]} 54. Kxa2
{[%clk 0:01:10.8]} 54... Rf6 {[%clk 0:00:08.5]} 55. Rf3 {[%clk 0:01:10.8]} 55...
Kd5 {[%clk 0:00:09]} 56. Kb3 {[%clk 0:01:11.2]} 56... Ke4 {[%clk 0:00:09.5]} 57.
Rf1 {[%clk 0:01:11.3]} 57... Rxf5 {[%clk 0:00:10.2]} 58. Re1+ {[%clk 0:01:12.2]}
58... Kd5 {[%clk 0:00:09.9]} 59. Kc3 {[%clk 0:01:12.2]} 59... Rf3+ {[%clk
0:00:10.1]} 60. Kb4 {[%clk 0:01:12.6]} 60... Rf4+ {[%clk 0:00:09.7]} 61. Kb5
{[%clk 0:01:13]} 61... Rf2 {[%clk 0:00:10.2]} 62. Rb1 {[%clk 0:01:12.5]} 62...
Rf8 {[%clk 0:00:09.8]} 63. Ka6 {[%clk 0:01:10.7]} 63... Kc6 {[%clk 0:00:09]} 64.
Rc1+ {[%clk 0:01:10.7]} 64... Kd5 {[%clk 0:00:09.6]} 65. Kb7 {[%clk 0:01:11.1]}
65... Kd4 {[%clk 0:00:09.9]} 66. Rd1+ {[%clk 0:01:11.2]} 66... Kc3 {[%clk
0:00:10.3]} 67. Rh1 {[%clk 0:01:12.1]} 67... Rf7+ {[%clk 0:00:10.5]} 68. Kc6
{[%clk 0:01:12.5]} 68... Kc4 {[%clk 0:00:11]} 69. Rc1+ {[%clk 0:01:11.9]} 69...
Kd4 {[%clk 0:00:11.3]} 70. Kd6 {[%clk 0:01:12.5]} 70... Rf6+ {[%clk 0:00:11.5]}
71. Ke7 {[%clk 0:01:13]} 71... Rh6 {[%clk 0:00:12.2]} 72. Kf7 {[%clk 0:01:13.1]}
72... Rh7+ {[%clk 0:00:12.3]} 73. Kg6 {[%clk 0:01:13.5]} 73... Ra7 {[%clk
0:00:13.1]} 74. Rb1 {[%clk 0:01:13.6]} 74... Ke5 {[%clk 0:00:11.8]} 75. Re1+
{[%clk 0:01:13.6]} 75... Kf4 {[%clk 0:00:12.1]} 76. Rf1+ {[%clk 0:01:13.8]}
76... Kg4 {[%clk 0:00:12.5]} 77. Rb1 {[%clk 0:01:13.8]} 77... Ra6+ {[%clk
0:00:12.5]} 78. Kf7 {[%clk 0:01:13.9]} 78... Kf5 {[%clk 0:00:13.1]} 79. Ke7
{[%clk 0:01:14.1]} 79... Ke5 {[%clk 0:00:13.6]} 80. Re1+ {[%clk 0:01:14.1]}
80... Kd5 {[%clk 0:00:13.9]} 81. Kf7 {[%clk 0:01:14.5]} 81... Ra7+ {[%clk
0:00:14.2]} 82. Kf6 {[%clk 0:01:14.7]} 82... Ra6+ {[%clk 0:00:14]} 83. Kf5
{[%clk 0:01:14.9]} 83... Ra2 {[%clk 0:00:14.3]} 84. Rd1+ {[%clk 0:01:15.1]}
84... Kc4 {[%clk 0:00:14.9]} 85. Ke6 {[%clk 0:01:15.4]} 85... Re2+ {[%clk
0:00:15.3]} 86. Kd6 {[%clk 0:01:15.7]} 86... Rh2 {[%clk 0:00:15.2]} 87. Rc1+
{[%clk 0:01:15.8]} 87... Kd4 {[%clk 0:00:15.1]} 88. Ra1 {[%clk 0:01:15.5]} 88...
Rh6+ {[%clk 0:00:14.7]} 89. Ke7 {[%clk 0:00:56]} 89... Ke5 {[%clk 0:00:13.3]}
90. Ra4 {[%clk 0:00:54.9]} 90... Rh7+ {[%clk 0:00:12.6]} 91. Kf8 {[%clk
0:00:55.1]} 91... Rb7 {[%clk 0:00:13.2]} 92. Ra1 {[%clk 0:00:53.7]} 92... Ke6
{[%clk 0:00:13]} 93. Kg8 {[%clk 0:00:53.8]} 93... Kf6 {[%clk 0:00:13]} 94. Rg1
{[%clk 0:00:52.9]} 94... Rb8+ {[%clk 0:00:12.1]} 95. Kh7 {[%clk 0:00:30.5]}
95... Ra8 {[%clk 0:00:13]} 96. Rf1+ {[%clk 0:00:28.8]} 96... Kg5 {[%clk
0:00:13.2]} 97. Rb1 {[%clk 0:00:28.4]} 97... Ra7+ {[%clk 0:00:13.3]} 98. Kg8
{[%clk 0:00:28.7]} 98... Kf6 {[%clk 0:00:13.8]} 99. Rb6+ {[%clk 0:00:28.6]}
99... Kg5 {[%clk 0:00:13.9]} 100. Kf8 {[%clk 0:00:28.5]} 100... Kf5 {[%clk
0:00:13.6]} 101. Ke8 {[%clk 0:00:28.9]} 101... Ke5 {[%clk 0:00:13.6]} 102. Kd8
{[%clk 0:00:29.3]} 102... Ra8+ {[%clk 0:00:14]} 103. Kc7 {[%clk 0:00:29.3]}
103... Rh8 {[%clk 0:00:14.6]} 104. Rb1 {[%clk 0:00:29.4]} 104... Kd5 {[%clk
0:00:14.9]} 105. Rb5+ {[%clk 0:00:29]} 105... Kc4 {[%clk 0:00:15.3]} 106. Rg5
{[%clk 0:00:29.9]} 106... Rh7+ {[%clk 0:00:15.3]} 107. Kd6 {[%clk 0:00:29.9]}
107... Kd4 {[%clk 0:00:15.7]} 1/2-1/2